bitfinex-derivatives/quotes_SOLF0:USTF0_20250228
["timestamp","ask_amount","ask_price","bid_price","bid_amount"]
[1740716361322,10.44634505,127.38,127.31,15.7]
[1740716361521,10.44634505,127.38,127.33,15.7]
[1740716361722,0.05846315,127.36,127.34,0.06033406]
[1740716361928,0.05846315,127.36,127.35,66.93801962]
[1740716362129,0.05846315,127.36,127.35,15.7]
[1740716362330,0.05846315,127.36,127.24,213.9]
[1740716362529,0.05846315,127.36,127.33,66.93801962]
[1740716362832,164.27620034,127.38,127.35,66.93801962]
[1740716363029,164.27620034,127.38,127.37,66.93801962]
[1740716363431,31.26926758,127.36,127.24,213.9]
[1740716363623,101.05620045,127.38,127.37,74.79601962]
[1740716363828,83.06310045,127.38,127.37,66.93801962]
[1740716364028,83.06310045,127.38,127.24,213.9]
[1740716364229,83.06310045,127.38,127.37,66.93801962]
[1740716364429,83.06310045,127.38,127.36,0.05711996]
[1740716364630,83.06310045,127.38,127.37,66.93801962]
[1740716364826,83.06310045,127.38,127.24,213.9]
[1740716365030,83.06310045,127.38,127.37,66.93801962]
[1740716365430,83.06310045,127.38,127.36,0.05045452]
[1740716365733,0.05907075,127.39,127.36,0.05045452]
[1740716365927,0.05907075,127.39,127.36,66.98847414]
[1740716366126,0.05907075,127.39,127.37,15.7]
[1740716366327,0.05907075,127.39,127.38,66.93801962]
[1740716366830,16.08,127.45,127.38,90.49801962]
[1740716367026,10.41246235,127.49,127.44,66.93801962]
[1740716367231,10.41246235,127.49,127.36,0.05045452]
[1740716367232,10.41246235,127.49,127.45,66.93801962]
[1740716367430,10.41246235,127.49,127.46,66.93801962]
[1740716367635,10.41246235,127.49,127.47,66.93801962]
[1740716368036,10.4657539,127.49,127.47,66.99620234]
[1740716368444,10.4657539,127.49,127.48,66.93801962]
[1740716368844,10.4657539,127.49,127.47,0.05818272]
[1740716369146,10.4657539,127.49,127.47,66.99620234]
[1740716369444,0.05329155,127.49,127.47,66.99620234]
[1740716369744,23.59329155,127.49,127.36,213.8]
[1740716370045,28.0906,127.54,127.4,66.93801962]
[1740716370441,1.56825844,127.53,127.4,15.7]
[1740716370744,1.56825844,127.53,127.28,213.72]
[1740716370945,0.0594246,127.48,127.45,0.05243162]
[1740716371148,1.56899662,127.47,127.28,213.72]
[1740716371349,1.56899662,127.47,127.42,66.93801962]
[1740716371539,28.0906,127.54,127.45,15.7]
[1740716371850,29.65873548,127.54,127.45,15.7]
[1740716372144,29.65873548,127.54,127.28,213.72]
[1740716372349,0.05562182,127.51,127.48,0.05257676]
[1740716372647,29.65873548,127.54,127.45,66.93801962]
[1740716372847,1.56825844,127.53,127.28,213.72]
[1740716373047,0.05842703,127.51,127.39,66.93801962]
[1740716373250,7.8488,127.52,127.45,66.93801962]
[1740716373450,1.56825844,127.53,127.45,51.23801962]
[1740716373750,7.852,127.47,127.33,7.8603]
[1740716373939,1.56825844,127.53,127.4,51.23801962]
[1740716374139,0.05824066,127.41,127.39,0.05996396]
[1740716374346,16.08,127.46,127.39,0.05996396]
[1740716374649,16.08,127.46,127.43,15.7]
[1740716374847,16.08,127.46,127.42,66.93801962]
[1740716375049,16.08,127.46,127.43,15.7]
[1740716375248,16.08,127.46,127.29,0.1048]
[1740716375440,16.08,127.46,127.44,15.7]
[1740716375643,16.1360667,127.46,127.44,15.7]
[1740716375947,16.1360667,127.46,127.45,66.93801962]
[1740716376147,16.08,127.51,127.45,66.93801962]
[1740716376341,16.08,127.51,127.47,15.7]
[1740716376751,16.08,127.51,127.31,16.08]
[1740716376945,16.08,127.51,127.46,66.93801962]
[1740716377146,16.08,127.51,127.44,15.7]
[1740716377346,0.0593709,127.5,127.47,0.05883373]
[1740716377748,7.8511,127.49,127.47,0.05883373]
[1740716378155,23.54,127.49,127.29,0.1048]
[1740716378345,3.9970709,127.5,127.41,66.93801962]
[1740716378547,3.9377,127.5,127.41,66.93801962]
[1740716378842,5.50632745,127.5,127.42,51.23801962]
[1740716379048,5.50632745,127.5,127.43,15.7]
[1740716379253,0.05649293,127.47,127.45,0.05573508]
[1740716379441,0.05649293,127.47,127.4,66.93801962]
[1740716379641,29.09632745,127.5,127.4,66.93801962]
[1740716379947,7.8537,127.44,127.34,7.8597]
[1740716380251,1.56875049,127.49,127.29,195.1048]
[1740716380453,1.56875049,127.49,127.4,66.93801962]
[1740716380651,1.42122149,127.48,127.4,66.93801962]
[1740716380947,7.8551,127.42,127.33,7.8601]
[1740716381154,16.06,127.41,127.37,66.93801962]
[1740716381556,0.05556178,127.4,127.37,66.93801962]
[1740716381852,0.05556178,127.4,127.39,66.93801962]
[1740716382444,17.62899662,127.47,127.39,66.93801962]
[1740716382650,17.62899662,127.47,127.45,66.93801962]
[1740716382856,17.62899662,127.47,127.46,66.93801962]
[1740716383150,16.06,127.47,127.46,51.23801962]
[1740716383349,16.06,127.47,127.29,195.1048]
[1740716383661,16.06,127.47,127.45,0.05385275]
[1740716383949,16.06,127.47,127.41,66.93801962]
[1740716384154,16.11203518,127.47,127.45,0.05139798]
[1740716386456,16.11203518,127.47,127.45,15.75139798]
[1740716386851,16.11203518,127.47,127.29,280.49087436]
[1740716387051,16.06,127.47,127.41,66.93801962]
[1740716387754,7.8534,127.45,127.41,66.93801962]
[1740716387948,0.05033268,127.45,127.43,0.05503938]
[1740716388146,0.05033268,127.45,127.39,66.93801962]
[1740716388345,16.06,127.47,127.39,66.93801962]
[1740716388553,7.9131894,127.44,127.39,66.93801962]
[1740716388851,0.0590894,127.44,127.42,0.05810256]
[1740716389252,7.8543,127.43,127.42,0.05810256]
[1740716389453,0.0590894,127.44,127.42,0.05810256]
[1740716390948,7.8543,127.43,127.35,7.8591]
[1740716391148,16.06,127.47,127.38,66.93801962]
[1740716391458,16.06,127.47,127.41,66.93801962]
[1740716392157,0.05911168,127.45,127.43,66.99637441]
[1740716392357,23.9121,127.47,127.43,15.7]
[1740716392548,0.05212288,127.45,127.43,0.06028513]
[1740716392753,133.77238576,127.68,127.45,15.7]
[1740716393057,29.50934691,127.55,127.48,15.7]
[1740716393258,28.0886,127.55,127.48,15.7]
[1740716393557,28.0886,127.55,127.32,16.06]
[1740716393753,28.0886,127.55,127.48,15.7]
[1740716394060,7.8494,127.52,127.48,15.7]
[1740716394362,7.8494,127.52,127.49,0.05576096]
[1740716394559,7.90643097,127.53,127.49,0.05576096]
[1740716394751,16.06,127.54,127.5,0.05930742]
[1740716394953,0.0519461,127.52,127.5,0.05930742]
[1740716395160,7.8507,127.49,127.4,7.8557]
[1740716395354,7.8507,127.49,127.48,0.05943677]
[1740716395554,7.8507,127.49,127.46,66.93801962]
[1740716395751,202.0286,127.55,127.46,66.93801962]
[1740716395955,16.06,127.54,127.47,0.05559402]
[1740716396149,0.05422761,127.52,127.48,66.93801962]
[1740716396351,16.06,127.54,127.46,66.93801962]
[1740716396553,0.0597615,127.51,127.46,66.93801962]
[1740716397055,23.5797615,127.51,127.37,85.38607436]
[1740716397255,7.8517,127.48,127.43,66.93801962]
[1740716397454,190.0,127.53,127.44,66.93801962]
[1740716397759,7.8519,127.47,127.44,51.23801962]
[1740716397955,1.56825844,127.53,127.35,85.38607436]
[1740716398257,0.05445735,127.47,127.44,15.75190804]
[1740716398558,0.05445735,127.47,127.35,85.38607436]
[1740716398559,23.54,127.47,127.35,85.38607436]
[1740716398854,0.06001901,127.47,127.44,0.05735582]
[1740716399059,0.06001901,127.47,127.35,85.38607436]
[1740716399060,190.0,127.5,127.42,66.93801962]
[1740716399256,190.0,127.5,127.43,66.93801962]
[1740716399463,0.05562633,127.47,127.43,15.7]
[1740716399662,0.05562633,127.47,127.45,0.05710251]
[1740716399863,7.8525,127.46,127.45,0.05710251]
[1740716400059,23.54,127.47,127.28,299.10607436]
[1740716400362,7.8536,127.45,127.4,66.93801962]
[1740716400563,16.06,127.45,127.4,15.7]
[1740716400758,16.06,127.45,127.28,299.10607436]
[1740716400958,7.8544,127.43,127.38,66.93801962]
[1740716401153,16.06,127.45,127.28,299.10607436]
[1740716401361,0.05495649,127.42,127.39,0.05391999]
[1740716401656,0.05123785,127.42,127.39,0.05219727]
[1740716402264,7.8562,127.4,127.39,0.05219727]
[1740716402563,23.59123785,127.42,127.29,85.38607436]
[1740716402753,0.05123785,127.42,127.34,15.7]
[1740716402958,1.41933471,127.44,127.34,15.7]
[1740716403263,1.56948913,127.43,127.29,85.38607436]
[1740716403458,191.41933471,127.42,127.33,66.93801962]
[1740716403653,0.0525439,127.37,127.36,51.23801962]
[1740716403857,9.42428913,127.43,127.38,66.93801962]
[1740716404058,1.56948913,127.43,127.4,66.93801962]
[1740716404459,1.56948913,127.43,127.28,213.72]
[1740716404665,1.56948913,127.43,127.4,66.93801962]
[1740716404858,1.6273618,127.43,127.4,66.98909872]
[1740716405159,1.6273618,127.43,127.41,66.93801962]
[1740716405362,1.6273618,127.43,127.42,66.93801962]
[1740716405659,37.98739175,127.53,127.42,66.93801962]
[1740716405860,17.48151406,127.52,127.46,66.93801962]
[1740716406059,16.06,127.52,127.46,66.93801962]
[1740716406259,16.06,127.52,127.48,66.93801962]
[1740716406463,16.06,127.52,127.49,66.93801962]
[1740716406763,0.05057543,127.51,127.5,66.93801962]
[1740716407064,0.05057543,127.51,127.49,0.05633658]
[1740716407267,0.05057543,127.51,127.5,66.93801962]
[1740716407762,19.8747,127.57,127.5,66.93801962]
[1740716407763,16.06,127.57,127.5,66.93801962]
[1740716407963,23.9051,127.58,127.53,66.93801962]
[1740716408263,16.06,127.58,127.53,66.93801962]
[1740716408463,7.8471,127.55,127.45,7.853]
[1740716408659,16.06,127.58,127.52,15.7]
[1740716408857,16.06,127.58,127.51,66.93801962]
[1740716409058,0.06022054,127.56,127.4,408.64]
[1740716409257,16.06,127.58,127.52,15.7]
[1740716409563,7.8462,127.57,127.52,66.93801962]
[1740716409764,0.05243574,127.56,127.54,0.05148993]
[1740716409952,16.06,127.58,127.53,66.93801962]
[1740716410158,0.05594191,127.56,127.53,66.99244733]
[1740716410563,0.05594191,127.56,127.53,0.05442771]
[1740716410770,0.05594191,127.56,127.4,213.64]
[1740716410957,1.42357527,127.57,127.48,66.93801962]
[1740716411157,1.42357527,127.57,127.51,66.93801962]
[1740716411363,16.06,127.58,127.51,66.93801962]
[1740716411865,16.06,127.58,127.4,213.64]
[1740716412062,0.05849668,127.56,127.53,0.0593357]
[1740716412262,0.05849668,127.56,127.51,66.93801962]
[1740716412263,1.42330302,127.57,127.51,15.7]
[1740716412466,0.05039646,127.56,127.53,4.129e-05]
[1740716412763,0.05039646,127.56,127.4,213.64]
[1740716412764,1.42330302,127.57,127.47,66.93801962]
[1740716412958,1.42330302,127.57,127.45,66.93801962]
[1740716413159,1.42330302,127.57,127.43,15.7]
[1740716413358,7.8537,127.44,127.41,66.93801962]
[1740716413558,16.04,127.46,127.41,66.93801962]
[1740716413862,7.8548,127.43,127.41,0.05812109]
[1740716414163,0.05545886,127.44,127.41,0.05812109]
[1740716414969,7.8549,127.42,127.41,0.05812109]
[1740716415665,0.05545886,127.44,127.41,0.05812109]
[1740716416969,7.8548,127.43,127.41,0.05812109]
[1740716417169,0.05545886,127.44,127.41,0.05812109]
[1740716417571,0.05545886,127.44,127.41,66.99614071]
[1740716417770,0.05545886,127.44,127.43,66.93801962]
[1740716417962,0.05545886,127.44,127.41,0.05812109]
[1740716419665,7.90915886,127.44,127.41,0.05812109]
[1740716419870,0.05545886,127.44,127.41,0.05812109]
[1740716420463,0.05545886,127.44,127.43,66.93801962]
[1740716420865,0.05545886,127.44,127.41,0.05812109]
[1740716421066,0.05545886,127.44,127.43,66.93801962]
[1740716421565,0.05545886,127.44,127.41,0.05812109]
[1740716421771,0.05545886,127.44,127.43,66.93801962]
[1740716422075,0.05545886,127.44,127.41,0.05812109]
[1740716422478,0.05545886,127.44,127.25,85.38607436]
[1740716422674,0.05545886,127.44,127.35,66.93801962]
[1740716422868,7.858,127.37,127.34,51.23801962]
[1740716423070,16.04,127.38,127.32,51.23801962]
[1740716423374,16.04,127.38,127.3,66.93801962]
[1740716423574,8.2271,127.37,127.29,15.7]
[1740716423770,0.0592977,127.35,127.33,0.05931174]
[1740716424073,7.8618,127.31,127.18,85.38607436]
[1740716424268,0.0592977,127.35,127.26,66.93801962]
[1740716424471,1.42532617,127.36,127.29,66.93801962]
[1740716424675,1.42532617,127.36,127.28,15.7]
[1740716424977,1.42532617,127.36,127.27,66.93801962]
[1740716425178,0.05432304,127.33,127.18,85.38607436]
[1740716425378,0.05432304,127.33,127.24,51.23801962]
[1740716425582,1.42520322,127.34,127.26,66.93801962]
[1740716425880,1.42520322,127.34,127.26,51.23801962]
[1740716426075,1.42520322,127.34,127.1,101.42607436]
[1740716426277,1.42520322,127.34,127.26,66.93801962]
[1740716426472,0.05268263,127.28,127.25,15.7]
[1740716426681,16.04,127.28,127.26,51.23801962]
[1740716426974,16.04,127.34,127.27,66.93801962]
[1740716427178,16.04,127.34,127.33,66.93801962]
[1740716427578,15.9723,127.34,127.33,66.93801962]
[1740716427779,16.04,127.4,127.33,66.93801962]
[1740716427976,16.04,127.4,127.37,66.93801962]
[1740716428177,0.04976649,127.38,127.37,66.93801962]
[1740716428375,0.04976649,127.38,127.35,0.05341819]
[1740716429881,0.04976649,127.38,127.37,66.93801962]
[1740716430383,0.04976649,127.38,127.35,0.05341819]
[1740716430677,0.04976649,127.38,127.36,66.93801962]
[1740716430882,0.04976649,127.38,127.37,66.93801962]
[1740716431082,422.20178389,127.57,127.37,66.93801962]
[1740716431285,8.1596,127.52,127.42,66.93801962]
[1740716431485,1.42748742,127.51,127.44,66.93801962]
[1740716431876,1.42748742,127.51,127.44,15.7]
[1740716432081,1.42748742,127.51,127.31,213.74]
[1740716432385,0.05436291,127.49,127.46,0.05059382]
[1740716432579,0.05436291,127.49,127.43,66.93801962]
[1740716432784,1.42748742,127.51,127.43,51.23801962]
[1740716432987,0.05511523,127.47,127.44,0.05572745]
[1740716433284,1.42748742,127.51,127.44,66.93801962]
[1740716433484,0.04959958,127.47,127.44,0.05346468]
[1740716433886,16.04,127.46,127.44,0.05346468]
[1740716434286,7.8544,127.43,127.31,213.74]
[1740716434585,20.169,127.46,127.38,66.93801962]
[1740716434783,7.8557,127.41,127.31,213.74]
[1740716435082,20.169,127.46,127.37,66.93801962]
[1740716435283,1.42511869,127.45,127.38,15.7]
[1740716435484,0.05602578,127.43,127.4,0.04988345]
[1740716435679,0.05602578,127.43,127.34,66.93801962]
[1740716435886,1.42511869,127.43,127.35,15.7]
[1740716436086,1.42511869,127.43,127.39,66.93801962]
[1740716436280,20.169,127.46,127.42,66.93801962]
[1740716436487,16.04,127.46,127.43,15.7]
[1740716436786,16.08972546,127.46,127.43,66.93801962]
[1740716438185,0.04972546,127.46,127.45,66.93801962]
[1740716438379,3.8972,127.53,127.45,66.93801962]
[1740716438380,16.04,127.52,127.45,66.93801962]
[1740716438580,3.8972,127.53,127.48,15.7]
[1740716438777,3.8972,127.53,127.48,66.93801962]
[1740716438982,3.8972,127.53,127.35,408.72]
[1740716439183,7.849,127.52,127.47,66.93801962]
[1740716439384,16.04,127.52,127.47,66.93801962]
[1740716439587,0.05272089,127.51,127.48,0.05635983]
[1740716439786,1.47688705,127.51,127.44,66.93801962]
[1740716439988,16.04,127.52,127.35,213.72]
[1740716439989,16.04,127.52,127.45,66.93801962]
[1740716440182,16.04,127.52,127.47,66.93801962]
[1740716440496,16.04,127.52,127.49,66.93801962]
[1740716440696,3.8778,127.55,127.49,66.93801962]
[1740716440991,0.05003513,127.52,127.5,66.93801962]
[1740716441193,0.05003513,127.52,127.35,213.72]
[1740716441387,7.8455,127.58,127.51,66.93801962]
[1740716441590,23.8655,127.58,127.52,66.93801962]
[1740716441792,0.05830861,127.56,127.54,15.7]
[1740716442190,23.8655,127.58,127.48,7.8508]
[1740716442493,7.90657746,127.56,127.54,15.7]
[1740716442689,0.06027746,127.56,127.53,66.93801962]
[1740716442891,16.02,127.58,127.36,1.57035175]
[1740716443190,0.05313021,127.56,127.52,15.7]
[1740716443389,16.02,127.58,127.52,15.7]
[1740716443585,0.0604256,127.55,127.36,1.57035175]
[1740716443782,16.02,127.58,127.51,66.93801962]
[1740716443983,1.42167213,127.57,127.49,15.7]
[1740716444194,0.05416012,127.56,127.49,15.7]
[1740716444492,0.05416012,127.56,127.49,66.93801962]
[1740716444689,0.05416012,127.56,127.5,15.7]
[1740716444887,0.05416012,127.56,127.5,66.93801962]
[1740716445088,0.05416012,127.56,127.52,15.7]
[1740716445291,1.42110926,127.57,127.52,15.7]
[1740716445592,0.05447472,127.55,127.36,1.57035175]
[1740716445794,16.02,127.58,127.52,15.7]
[1740716446089,16.02,127.58,127.51,51.23801962]
[1740716446293,0.05973328,127.56,127.51,66.93801962]
[1740716446694,0.05973328,127.56,127.55,66.93801962]
[1740716446996,7.845,127.59,127.55,66.93801962]
[1740716447190,0.05221869,127.57,127.41,16.02]
[1740716447386,3.9286,127.6,127.55,66.93801962]
[1740716447696,16.02,127.6,127.56,66.93801962]
[1740716447890,0.05836066,127.59,127.56,15.7]
[1740716448090,0.05836066,127.59,127.47,213.56]
[1740716448293,16.02,127.63,127.57,15.7]
[1740716448488,1.42003868,127.62,127.55,15.7]
[1740716448793,1.42003868,127.62,127.47,213.56]
[1740716448794,0.05699348,127.61,127.56,66.93801962]
[1740716448993,16.02,127.63,127.57,15.7]
[1740716449191,0.05830227,127.6,127.57,15.7]
[1740716449389,0.05830227,127.6,127.47,213.56]
[1740716449594,1.41976343,127.62,127.56,15.7]
[1740716449985,7.90194754,127.6,127.56,15.7]
[1740716450190,0.05764754,127.6,127.47,213.56]
[1740716450390,9.25356241,127.62,127.54,66.93801962]
[1740716450591,0.0539385,127.55,127.53,51.23801962]
[1740716450795,3.8763,127.61,127.53,66.93801962]
[1740716450994,0.06022921,127.55,127.54,66.93801962]
[1740716451191,3.8763,127.61,127.55,66.93801962]
[1740716451397,0.0549045,127.56,127.55,66.93801962]
[1740716451700,3.8763,127.61,127.47,213.56]
[1740716451895,3.8763,127.61,127.52,15.7]
[1740716452095,0.05242503,127.55,127.52,15.7]
[1740716452290,7.8467,127.56,127.47,221.4118]
[1740716452495,0.05211084,127.55,127.52,15.7]
[1740716452698,7.847,127.55,127.52,15.7]
[1740716452995,0.06043951,127.55,127.47,213.56]
[1740716453192,7.8476,127.54,127.51,66.93801962]
[1740716453398,0.05983102,127.52,127.51,66.93801962]
[1740716453892,0.05983102,127.52,127.38,213.48]
[1740716454090,0.05983102,127.52,127.48,66.93801962]
[1740716454294,7.8498,127.51,127.48,15.7]
[1740716454494,7.8498,127.51,127.42,7.8545]
[1740716454694,7.8498,127.51,127.48,15.7]
[1740716454997,7.8489,127.52,127.48,66.93801962]
[1740716455198,7.8489,127.52,127.38,213.48]
[1740716455199,0.0572932,127.51,127.38,213.48]
[1740716455502,16.0,127.54,127.51,15.7]
[1740716455900,16.0,127.54,127.53,66.93801962]
[1740716455901,0.05584876,127.54,127.53,66.93801962]
[1740716456104,7.8435,127.61,127.53,66.93801962]
[1740716456305,16.0,127.63,127.58,66.93801962]
[1740716456508,11.6784,127.71,127.58,66.93801962]
[1740716456705,7.8412,127.65,127.59,66.93801962]
[1740716456902,16.0,127.7,127.6,66.93801962]
[1740716457103,16.0,127.7,127.59,66.93801962]
[1740716457104,1.41771439,127.69,127.59,66.93801962]
[1740716457307,0.05938551,127.66,127.64,1.554e-05]
[1740716457708,23.5,127.66,127.5,213.48]
[1740716457910,16.0,127.7,127.6,66.93801962]
[1740716458110,1.41778992,127.69,127.61,66.93801962]
[1740716458305,1.41778992,127.69,127.6,66.93801962]
[1740716458514,0.05433794,127.66,127.6,66.93801962]
[1740716458809,16.05433794,127.66,127.5,213.48]
[1740716459014,16.05433794,127.66,127.61,66.93801962]
[1740716459214,16.0,127.66,127.6,66.93801962]
[1740716459711,0.05099611,127.64,127.6,66.93801962]
[1740716460017,0.05099611,127.64,127.5,213.48]
[1740716460212,7.8443,127.6,127.55,51.23801962]
[1740716460403,11.7588,127.63,127.54,66.93801962]
[1740716460604,0.05069655,127.58,127.55,51.23801962]
[1740716460911,0.05069655,127.58,127.5,213.48]
[1740716461105,0.05069655,127.58,127.55,51.23801962]
[1740716461302,7.844,127.6,127.56,51.23801962]
[1740716461502,0.05875623,127.58,127.56,66.93801962]
[1740716462110,7.9581,127.63,127.57,51.23801962]
[1740716462318,16.0,127.66,127.59,66.93801962]
[1740716462609,16.0,127.66,127.58,66.93801962]
[1740716462803,7.8416,127.64,127.58,66.93801962]
[1740716463003,16.0,127.66,127.58,66.93801962]
[1740716463412,0.05109851,127.63,127.61,0.05304761]
[1740716463707,15.98,127.68,127.62,66.93801962]
[1740716463910,1.42048839,127.67,127.63,66.93801962]
[1740716464109,15.98,127.69,127.62,15.7]
[1740716464312,0.05267419,127.66,127.61,66.93801962]
[1740716464616,7.89297419,127.66,127.64,0.05877177]
[1740716465009,0.05267419,127.66,127.64,0.05877177]
[1740716465616,0.05267419,127.66,127.65,66.93801962]
[1740716465816,1.42137197,127.7,127.65,66.93801962]
[1740716466011,8.183,127.71,127.66,66.93801962]
[1740716466218,4.1955,127.79,127.68,66.93801962]
[1740716466414,15.98,127.74,127.66,66.93801962]
[1740716466708,15.98,127.74,127.51,15.98]
[1740716466709,7.8379,127.7,127.65,66.93801962]
[1740716466914,15.98,127.74,127.66,66.93801962]
[1740716467111,0.05891763,127.71,127.69,66.99738252]
[1740716467309,0.05891763,127.71,127.69,0.0593629]
[1740716467515,1.42141328,127.74,127.51,15.98]
[1740716467516,15.98,127.75,127.7,66.93801962]
[1740716467711,15.98,127.75,127.72,66.93801962]
[1740716467907,15.98,127.75,127.73,66.93801962]
[1740716468615,15.98,127.75,127.62,408.34]
[1740716468915,16.03024348,127.75,127.73,0.05316686]
[1740716469116,15.98,127.75,127.62,213.34]
[1740716469316,15.98,127.75,127.71,66.93801962]
[1740716469614,15.98,127.75,127.73,0.05454036]
[1740716469615,16.0392578,127.75,127.73,0.05454036]
[1740716469818,16.0392578,127.75,127.72,66.93801962]
[1740716470118,15.98,127.75,127.73,0.0549739]
[1740716470316,16.03182492,127.75,127.73,0.0549739]
[1740716470511,7.8355,127.74,127.64,7.8409]
[1740716470712,7.8355,127.74,127.7,66.93801962]
[1740716470911,7.8355,127.74,127.73,0.05806044]
[1740716471413,31.3155,127.74,127.73,6.044e-05]
[1740716471620,24.90204736,127.74,127.62,213.34]
[1740716471814,16.03308007,127.75,127.68,66.93801962]
[1740716472015,9.25797073,127.74,127.7,66.93801962]
[1740716472216,15.98,127.75,127.7,51.23801962]
[1740716472417,1.42269605,127.74,127.62,213.34]
[1740716472818,0.05602485,127.74,127.71,0.05354796]
[1740716473113,15.98,127.75,127.73,66.93801962]
[1740716473314,0.05680358,127.74,127.71,0.05691746]
[1740716473719,15.98,127.75,127.63,7.8418]
[1740716474019,15.98,127.75,127.71,0.05102688]
[1740716474020,1.47763657,127.74,127.71,0.05102688]
[1740716474216,1.4212611,127.74,127.67,66.93801962]
[1740716474515,1.4212611,127.74,127.68,66.93801962]
[1740716474814,15.98,127.75,127.71,66.93801962]
[1740716474815,0.0595842,127.72,127.71,66.93801962]
[1740716475114,15.98,127.75,127.71,66.93801962]
[1740716475516,0.05801139,127.73,127.7,0.05976549]
[1740716475914,1.42251279,127.74,127.62,213.34]
[1740716476120,0.05123667,127.73,127.7,66.98812923]
[1740716476420,15.98,127.75,127.72,66.93801962]
[1740716476721,15.98,127.75,127.73,66.93801962]
[1740716476916,0.05184686,127.75,127.74,66.93801962]
[1740716477111,15.96,127.81,127.74,66.93801962]
[1740716477317,1.42261229,127.8,127.76,66.93801962]
[1740716477713,15.96,127.81,127.76,66.93801962]
[1740716477914,11.9029,127.87,127.77,66.93801962]
[1740716478120,17.38223913,127.86,127.77,66.93801962]
[1740716478318,1.42223913,127.85,127.62,229.3]
[1740716478516,7.8303,127.82,127.81,0.05172392]
[1740716478713,15.96,127.85,127.78,66.93801962]
[1740716478918,0.05884828,127.83,127.81,66.93801962]
[1740716479113,0.05884828,127.83,127.82,66.93801962]
[1740716479314,15.96,127.89,127.82,66.93801962]
[1740716479517,15.96,127.89,127.83,66.93801962]
[1740716479716,1.42356765,127.88,127.82,66.93801962]
[1740716479915,1.42356765,127.88,127.81,66.93801962]
[1740716480122,1.42356765,127.88,127.8,66.93801962]
[1740716480321,1.42356765,127.88,127.82,51.23801962]
[1740716480515,15.96,127.89,127.84,66.93801962]
[1740716480716,15.96,127.89,127.84,51.23801962]
[1740716481020,12.0196,127.94,127.88,51.23801962]
[1740716481321,12.0196,127.94,127.84,0.0597545]
[1740716481322,1.42491731,127.93,127.91,51.23801962]
[1740716481523,19.9248,127.99,127.92,51.23801962]
[1740716481724,1.42564831,127.98,127.92,51.23801962]
[1740716482023,1.42564831,127.98,127.93,51.23801962]
[1740716482329,0.05280963,127.96,127.94,66.9937252]
[1740716482525,0.05280963,127.96,127.95,66.93801962]
[1740716482719,15.94,128.0,127.95,51.23801962]
[1740716483022,1.42712251,127.99,127.81,210.94]
[1740716483224,0.05156464,127.97,127.94,0.05802004]
[1740716483422,0.05156464,127.97,127.94,51.23801962]
[1740716483624,1.42712251,127.99,127.81,15.94]
[1740716483917,15.94,128.0,127.94,0.06029519]
[1740716483918,7.8219,127.96,127.94,0.06029519]
[1740716484116,15.94,128.0,127.88,66.93801962]
[1740716484314,4.1226,127.96,127.88,66.93801962]
[1740716484618,4.1226,127.96,126.56,2.88763366]
[1740716484619,1.42694237,127.95,127.82,86.22278073]
[1740716484824,1.42694237,127.95,127.85,66.93801962]
[1740716485014,1.42694237,127.95,127.89,51.23801962]
[1740716485327,1.42694237,127.95,127.88,15.7]
[1740716485518,1.42694237,127.95,127.91,66.93801962]
[1740716485724,0.0539291,127.93,127.92,66.93801962]
[1740716485915,0.0539291,127.93,127.92,51.23801962]
[1740716486115,1.42817436,127.97,127.81,129.33417109]
[1740716486321,0.05399571,127.94,127.91,0.05199268]
[1740716486716,1.42817436,127.97,127.81,129.33417109]
[1740716486920,1.42817436,127.97,127.91,66.93801962]
[1740716487122,0.05156885,127.94,127.91,0.05816603]
[1740716487526,0.05156885,127.94,127.93,66.93801962]
[1740716487821,0.05156885,127.94,127.93,51.23801962]
[1740716488124,0.05156885,127.94,127.91,0.05816603]
[1740716488734,0.05156885,127.94,127.91,51.29618565]
[1740716488922,0.05156885,127.94,127.93,51.23801962]
[1740716489117,0.05156885,127.94,127.92,66.93801962]
[1740716489323,0.05156885,127.94,127.91,0.05816603]
[1740716489526,0.05156885,127.94,127.92,51.23801962]
[1740716489717,0.05156885,127.94,127.92,66.93801962]
[1740716489919,0.05156885,127.94,127.93,51.23801962]
[1740716490122,0.05156885,127.94,127.93,66.93801962]